[Event "December 12 Early 2023"]
[Site "https://www.chess.com"]
[Date "2023.12.12"]
[Round "8"]
[White "Hrebenshchykova, Yelyzaveta"]
[Black "Tasev, Dejan"]
[Result "1-0"]
[Board "89"]
[TimeControl "180+1"]
[WhiteFideId "14159899"]
[BlackFideId "936618"]
[WhiteElo "2470"]
[BlackElo "2571"]
[WhiteTeam "UKR"]
[BlackTeam "SRB"]
[WhiteClock "0:00:12"]
[BlackClock "0:00:15"]

1. e4 {[%clk 0:03:00]}  e5 {[%clk 0:02:59]} 2. Nf3 {[%clk 0:03:00]}  Nc6 {[%clk 0:02:59]} 3. Bb5 {[%clk 0:02:59]}  a6 {[%clk 0:02:59]} 4. Ba4 {[%clk 0:02:59]}  Nf6 {[%clk 0:02:59]} 5. O-O {[%clk 0:02:59]}  b5 {[%clk 0:02:59]} 6. Bb3 {[%clk 0:02:59]}  Be7 {[%clk 0:03:00]} 7. d4 {[%clk 0:02:51]}  d6 {[%clk 0:02:58]} 8. c3 {[%clk 0:02:50]}  O-O {[%clk 0:02:58]} 9. h3 {[%clk 0:02:40]}  exd4 {[%clk 0:02:56]} 10. cxd4 {[%clk 0:02:40]}  Na5 {[%clk 0:02:57]} 11. Bc2 {[%clk 0:02:39]}  c5 {[%clk 0:02:57]} 12. e5 {[%clk 0:02:13]}  dxe5 {[%clk 0:02:46]} 13. dxe5 {[%clk 0:02:14]}  Nd5 {[%clk 0:02:44]} 14. Qe2 {[%clk 0:02:09]}  Bb7 {[%clk 0:02:27]} 15. Rd1 {[%clk 0:02:06]}  g6 {[%clk 0:02:15]} 16. Bh6 {[%clk 0:01:41]}  Re8 {[%clk 0:02:13]} 17. Be4 {[%clk 0:01:41]}  Qd7 {[%clk 0:01:50]} 18. Qc2 {[%clk 0:01:16]}  Qe6 {[%clk 0:01:40]} 19. a3 {[%clk 0:01:10]}  Nc4 {[%clk 0:01:33]} 20. Nc3 {[%clk 0:00:59]}  Rad8 {[%clk 0:01:21]} 21. Nxd5 {[%clk 0:00:39]}  Bxd5 {[%clk 0:01:20]} 22. Bxd5 {[%clk 0:00:39]}  Rxd5 {[%clk 0:01:20]} 23. Re1 {[%clk 0:00:40]}  Nxe5 {[%clk 0:01:09]} 24. Ng5 {[%clk 0:00:39]}  Qd7 {[%clk 0:01:02]} 25. Re3 {[%clk 0:00:22]}  Bf6 {[%clk 0:00:32]} 26. Rae1 {[%clk 0:00:21]}  Re7 {[%clk 0:00:27]} 27. Ne4 {[%clk 0:00:20]}  Bg7 {[%clk 0:00:25]} 28. Bg5 {[%clk 0:00:17]}  Re8 {[%clk 0:00:22]} 29. Nxc5 {[%clk 0:00:17]}  Qc6 {[%clk 0:00:20]} 30. b4 {[%clk 0:00:17]}  f6 {[%clk 0:00:20]} 31. Bf4 {[%clk 0:00:17]}  Red8 {[%clk 0:00:20]} 32. Bxe5 {[%clk 0:00:16]}  Rxe5 {[%clk 0:00:20]} 33. Rxe5 {[%clk 0:00:17]}  fxe5 {[%clk 0:00:20]} 34. Qb3+ {[%clk 0:00:15]}  Qd5 {[%clk 0:00:20]} 35. Rd1 {[%clk 0:00:12]}  Qxb3 {[%clk 0:00:17]} 36. Rxd8+ {[%clk 0:00:12]}  Kf7 {[%clk 0:00:15]} 37. Nxb3 {[%clk 0:00:12]} 1-0

[Event "December 12 Early 2023"]
[Site "https://www.chess.com"]
[Date "2023.12.12"]
[Round "8"]
[White "Hajiyev, Kanan"]
[Black "Dyulgerov, Volen"]
[Result "0-1"]
[Board "91"]
[TimeControl "180+1"]
[WhiteFideId "13404148"]
[BlackFideId "2918978"]
[WhiteElo "2559"]
[BlackElo "2420"]
[WhiteTeam "AZE"]
[BlackTeam "BUL"]
[WhiteClock "0:00:08"]
[BlackClock "0:00:04"]

1. d4 {[%clk 0:03:00]}  e5 {[%clk 0:02:59]} 2. dxe5 {[%clk 0:03:00]}  d6 {[%clk 0:03:00]} 3. exd6 {[%clk 0:03:00]}  Bxd6 {[%clk 0:03:00]} 4. Nf3 {[%clk 0:03:00]}  Nf6 {[%clk 0:03:00]} 5. Bg5 {[%clk 0:03:01]}  Nc6 {[%clk 0:02:58]} 6. Nc3 {[%clk 0:03:01]}  Bg4 {[%clk 0:02:40]} 7. e3 {[%clk 0:02:57]}  Qd7 {[%clk 0:02:40]} 8. h3 {[%clk 0:02:55]}  Be6 {[%clk 0:02:26]} 9. Bxf6 {[%clk 0:02:52]}  gxf6 {[%clk 0:02:26]} 10. Nd4 {[%clk 0:02:50]}  Be5 {[%clk 0:02:04]} 11. Bb5 {[%clk 0:02:40]}  a6 {[%clk 0:01:25]} 12. Bxc6 {[%clk 0:02:31]}  bxc6 {[%clk 0:01:25]} 13. Nxe6 {[%clk 0:02:21]}  Qxe6 {[%clk 0:01:25]} 14. O-O {[%clk 0:02:14]}  Rb8 {[%clk 0:01:08]} 15. Rb1 {[%clk 0:02:09]}  Qf5 {[%clk 0:01:08]} 16. Qf3 {[%clk 0:01:53]}  Qxc2 {[%clk 0:00:57]} 17. Qxc6+ {[%clk 0:01:52]}  Kf8 {[%clk 0:00:58]} 18. Qxa6 {[%clk 0:01:47]}  Rg8 {[%clk 0:00:45]} 19. Rfd1 {[%clk 0:01:33]}  Bxc3 {[%clk 0:00:41]} 20. Qc6 {[%clk 0:01:01]}  Rxb2 {[%clk 0:00:30]} 21. Rd8+ {[%clk 0:00:33]}  Kg7 {[%clk 0:00:30]} 22. Rxg8+ {[%clk 0:00:29]}  Kxg8 {[%clk 0:00:31]} 23. Qe8+ {[%clk 0:00:19]}  Kg7 {[%clk 0:00:31]} 24. Rxb2 {[%clk 0:00:19]}  Bxb2 {[%clk 0:00:25]} 25. a4 {[%clk 0:00:19]}  Be5 {[%clk 0:00:24]} 26. f4 {[%clk 0:00:18]}  Qc1+ {[%clk 0:00:22]} 27. Kh2 {[%clk 0:00:18]}  Bc3 {[%clk 0:00:19]} 28. Qe4 {[%clk 0:00:15]}  Qd1 {[%clk 0:00:08]} 29. Qc4 {[%clk 0:00:12]}  Ba5 {[%clk 0:00:06]} 30. Qc6 {[%clk 0:00:03]}  Qd6 {[%clk 0:00:04]} 31. Qxd6 {[%clk 0:00:03]}  cxd6 {[%clk 0:00:04]} 32. Kg3 {[%clk 0:00:04]}  f5 {[%clk 0:00:05]} 33. Kf3 {[%clk 0:00:04]}  Kf6 {[%clk 0:00:05]} 34. g4 {[%clk 0:00:05]}  d5 {[%clk 0:00:05]} 35. Ke2 {[%clk 0:00:05]}  Ke6 {[%clk 0:00:04]} 36. Kd3 {[%clk 0:00:06]}  Bb6 {[%clk 0:00:03]} 37. Kd2 {[%clk 0:00:05]}  f6 {[%clk 0:00:02]} 38. Kd3 {[%clk 0:00:05]}  fxg4 {[%clk 0:00:02]} 39. hxg4 {[%clk 0:00:06]}  h6 {[%clk 0:00:03]} 40. Kd2 {[%clk 0:00:05]}  d4 {[%clk 0:00:04]} 41. e4 {[%clk 0:00:04]}  Kd6 {[%clk 0:00:02]} 42. Kd3 {[%clk 0:00:05]}  Kc5 {[%clk 0:00:02]} 43. e5 {[%clk 0:00:03]}  fxe5 {[%clk 0:00:03]} 44. Ke4 {[%clk 0:00:03]}  Kc4 {[%clk 0:00:03]} 45. f5 {[%clk 0:00:02]}  d3 {[%clk 0:00:03]} 46. f6 {[%clk 0:00:02]}  Bc5 {[%clk 0:00:03]} 47. f7 {[%clk 0:00:02]}  d2 {[%clk 0:00:03]} 48. f8=Q {[%clk 0:00:02]}  Bxf8 {[%clk 0:00:03]} 49. Kxe5 {[%clk 0:00:03]}  d1=Q {[%clk 0:00:03]} 50. Kf6 {[%clk 0:00:04]}  Qxg4 {[%clk 0:00:02]} 51. a5 {[%clk 0:00:05]}  Qg5+ {[%clk 0:00:03]} 52. Kf7 {[%clk 0:00:05]}  Qxa5 {[%clk 0:00:03]} 53. Kg6 {[%clk 0:00:05]}  Qa7 {[%clk 0:00:03]} 54. Kh5 {[%clk 0:00:05]}  Qb7 {[%clk 0:00:02]} 55. Kh4 {[%clk 0:00:06]}  Qg7 {[%clk 0:00:02]} 56. Kh5 {[%clk 0:00:07]}  Bd6 {[%clk 0:00:02]} 57. Kh4 {[%clk 0:00:07]}  Qg3+ {[%clk 0:00:03]} 58. Kh5 {[%clk 0:00:08]}  Qg5# {[%clk 0:00:04]} 0-1

[Event "December 12 Early 2023"]
[Site "https://www.chess.com"]
[Date "2023.12.12"]
[Round "8"]
[White "Baziuk, Vladyslav"]
[Black "Munoz Sanchez, Miguel"]
[Result "1-0"]
[Board "94"]
[TimeControl "180+1"]
[WhiteFideId "34107940"]
[BlackFideId "3600734"]
[WhiteElo "2530"]
[BlackElo "2356"]
[WhiteTeam "UKR"]
[BlackTeam "ECU"]
[WhiteClock "0:00:11"]
[BlackClock "0:00:02"]

1. e4 {[%clk 0:03:00]}  e6 {[%clk 0:02:58]} 2. d4 {[%clk 0:03:00]}  d5 {[%clk 0:02:59]} 3. e5 {[%clk 0:03:00]}  c5 {[%clk 0:02:59]} 4. c3 {[%clk 0:03:00]}  Qb6 {[%clk 0:02:58]} 5. Nf3 {[%clk 0:02:59]}  Bd7 {[%clk 0:02:59]} 6. Be2 {[%clk 0:02:54]}  Bb5 {[%clk 0:02:58]} 7. dxc5 {[%clk 0:02:52]}  Bxc5 {[%clk 0:02:56]} 8. O-O {[%clk 0:02:52]}  Bxe2 {[%clk 0:02:55]} 9. Qxe2 {[%clk 0:02:52]}  a5 {[%clk 0:02:55]} 10. Nbd2 {[%clk 0:02:48]}  a4 {[%clk 0:02:49]} 11. b4 {[%clk 0:02:49]}  axb3 {[%clk 0:02:49]} 12. Nxb3 {[%clk 0:02:49]}  Be7 {[%clk 0:02:45]} 13. Be3 {[%clk 0:02:48]}  Qc7 {[%clk 0:02:45]} 14. Rac1 {[%clk 0:02:44]}  Qc4 {[%clk 0:02:35]} 15. Qc2 {[%clk 0:02:30]}  Nc6 {[%clk 0:02:28]} 16. Nfd2 {[%clk 0:02:26]}  Qa4 {[%clk 0:02:21]} 17. c4 {[%clk 0:02:05]}  Nh6 {[%clk 0:01:56]} 18. cxd5 {[%clk 0:01:58]}  exd5 {[%clk 0:01:56]} 19. Bxh6 {[%clk 0:01:57]}  gxh6 {[%clk 0:01:54]} 20. Qf5 {[%clk 0:01:38]}  Rg8 {[%clk 0:01:40]} 21. e6 {[%clk 0:01:28]}  fxe6 {[%clk 0:01:28]} 22. Qxe6 {[%clk 0:01:24]}  Qg4 {[%clk 0:01:19]} 23. Qxd5 {[%clk 0:01:19]}  Rxa2 {[%clk 0:01:06]} 24. h3 {[%clk 0:01:14]}  Qg5 {[%clk 0:01:03]} 25. Qxg5 {[%clk 0:01:08]}  hxg5 {[%clk 0:01:00]} 26. Rfe1 {[%clk 0:01:01]}  Kf7 {[%clk 0:00:58]} 27. Ne4 {[%clk 0:00:55]}  Rd8 {[%clk 0:00:51]} 28. Rcd1 {[%clk 0:00:47]}  Rxd1 {[%clk 0:00:49]} 29. Rxd1 {[%clk 0:00:48]}  Rb2 {[%clk 0:00:45]} 30. Nbc5 {[%clk 0:00:36]}  Ne5 {[%clk 0:00:39]} 31. Rd5 {[%clk 0:00:32]}  Bxc5 {[%clk 0:00:32]} 32. Nxc5 {[%clk 0:00:29]}  Kf6 {[%clk 0:00:26]} 33. Rd6+ {[%clk 0:00:21]}  Kf7 {[%clk 0:00:19]} 34. g3 {[%clk 0:00:15]}  b6 {[%clk 0:00:14]} 35. Ne4 {[%clk 0:00:13]}  Nf3+ {[%clk 0:00:12]} 36. Kg2 {[%clk 0:00:12]}  Ne1+ {[%clk 0:00:12]} 37. Kf1 {[%clk 0:00:12]}  Rb1 {[%clk 0:00:09]} 38. Nxg5+ {[%clk 0:00:11]}  Ke7 {[%clk 0:00:08]} 39. Re6+ {[%clk 0:00:11]}  Kd7 {[%clk 0:00:08]} 40. Rxe1 {[%clk 0:00:12]}  Rb5 {[%clk 0:00:07]} 41. Nxh7 {[%clk 0:00:11]}  Rh5 {[%clk 0:00:07]} 42. Nf6+ {[%clk 0:00:11]}  Kc6 {[%clk 0:00:02]} 43. Nxh5 {[%clk 0:00:11]} 1-0

[Event "December 12 Early 2023"]
[Site "https://www.chess.com"]
[Date "2023.12.12"]
[Round "8"]
[White "Krysa, Leandro"]
[Black "Dilmukhametov, Artur"]
[Result "1-0"]
[Board "99"]
[TimeControl "180+1"]
[WhiteFideId "116807"]
[BlackFideId "24179922"]
[WhiteElo "2712"]
[BlackElo "2451"]
[WhiteTeam "ARG"]
[BlackTeam "RUS"]
[WhiteClock "0:00:29"]
[BlackClock "0:00:11"]

1. e4 {[%clk 0:03:00]}  c6 {[%clk 0:02:59]} 2. d4 {[%clk 0:02:59]}  d5 {[%clk 0:03:00]} 3. exd5 {[%clk 0:02:58]}  cxd5 {[%clk 0:03:01]} 4. c4 {[%clk 0:02:59]}  Nf6 {[%clk 0:03:01]} 5. Nc3 {[%clk 0:02:59]}  Nc6 {[%clk 0:03:01]} 6. Nf3 {[%clk 0:02:59]}  Bg4 {[%clk 0:03:01]} 7. cxd5 {[%clk 0:02:54]}  Nxd5 {[%clk 0:03:01]} 8. Qb3 {[%clk 0:02:54]}  Bxf3 {[%clk 0:03:00]} 9. gxf3 {[%clk 0:02:47]}  e6 {[%clk 0:02:56]} 10. Qxb7 {[%clk 0:02:35]}  Nxd4 {[%clk 0:02:54]} 11. Bb5+ {[%clk 0:02:33]}  Nxb5 {[%clk 0:02:54]} 12. Qc6+ {[%clk 0:02:31]}  Ke7 {[%clk 0:02:48]} 13. Qxb5 {[%clk 0:02:07]}  Nxc3 {[%clk 0:02:40]} 14. bxc3 {[%clk 0:01:56]}  Qd5 {[%clk 0:02:35]} 15. Qxd5 {[%clk 0:01:37]}  exd5 {[%clk 0:02:35]} 16. Rb1 {[%clk 0:01:38]}  f6 {[%clk 0:01:59]} 17. Rb7+ {[%clk 0:01:27]}  Ke6 {[%clk 0:01:59]} 18. Be3 {[%clk 0:01:23]}  a5 {[%clk 0:01:48]} 19. Bd4 {[%clk 0:01:18]}  Rg8 {[%clk 0:01:37]} 20. Kd2 {[%clk 0:01:10]}  Bd6 {[%clk 0:01:32]} 21. h3 {[%clk 0:01:02]}  Bf4+ {[%clk 0:01:31]} 22. Kd3 {[%clk 0:01:00]}  Rgb8 {[%clk 0:01:21]} 23. Rhb1 {[%clk 0:00:47]}  g6 {[%clk 0:01:13]} 24. R1b6+ {[%clk 0:00:40]}  Kf5 {[%clk 0:01:09]} 25. Rxf6+ {[%clk 0:00:37]}  Kg5 {[%clk 0:01:03]} 26. Rxh7 {[%clk 0:00:32]}  Rb2 {[%clk 0:00:11]} 27. h4# {[%clk 0:00:29]} 1-0

[Event "December 12 Early 2023"]
[Site "https://www.chess.com"]
[Date "2023.12.12"]
[Round "8"]
[White "Hua, Lefong"]
[Black "Pourkashiyan, Atousa"]
[Result "1-0"]
[Board "100"]
[TimeControl "180+1"]
[WhiteFideId "2602253"]
[BlackFideId "12502014"]
[WhiteElo "2656"]
[BlackElo "2447"]
[WhiteTeam "CAN"]
[BlackTeam "USA"]
[WhiteClock "0:02:05"]
[BlackClock "0:00:43"]

1. d4 {[%clk 0:03:00]}  Nf6 {[%clk 0:02:59]} 2. c4 {[%clk 0:03:00]}  e6 {[%clk 0:03:00]} 3. Nc3 {[%clk 0:03:00]}  Bb4 {[%clk 0:03:00]} 4. f3 {[%clk 0:03:00]}  d5 {[%clk 0:02:55]} 5. a3 {[%clk 0:03:00]}  Bxc3+ {[%clk 0:02:55]} 6. bxc3 {[%clk 0:03:01]}  c5 {[%clk 0:02:55]} 7. cxd5 {[%clk 0:03:00]}  Nxd5 {[%clk 0:02:54]} 8. dxc5 {[%clk 0:03:00]}  Qa5 {[%clk 0:02:53]} 9. e4 {[%clk 0:02:59]}  Ne7 {[%clk 0:02:46]} 10. Be3 {[%clk 0:02:58]}  Nd7 {[%clk 0:02:43]} 11. Qb3 {[%clk 0:02:54]}  Nc6 {[%clk 0:02:38]} 12. Bb5 {[%clk 0:02:45]}  O-O {[%clk 0:02:34]} 13. Ne2 {[%clk 0:02:32]}  a6 {[%clk 0:02:31]} 14. Bxc6 {[%clk 0:02:32]}  bxc6 {[%clk 0:02:31]} 15. Qb4 {[%clk 0:02:29]}  Qc7 {[%clk 0:02:27]} 16. O-O {[%clk 0:02:28]}  a5 {[%clk 0:02:27]} 17. Qd4 {[%clk 0:02:23]}  Ba6 {[%clk 0:02:27]} 18. Rfe1 {[%clk 0:02:23]}  e5 {[%clk 0:02:28]} 19. Qd6 {[%clk 0:02:22]}  Rac8 {[%clk 0:02:19]} 20. Ng3 {[%clk 0:02:12]}  g6 {[%clk 0:01:51]} 21. Red1 {[%clk 0:02:12]}  Nb8 {[%clk 0:01:51]} 22. Qf6 {[%clk 0:02:06]}  Nd7 {[%clk 0:01:08]} 23. Rxd7 {[%clk 0:02:05]}  Qxd7 {[%clk 0:00:43]} 24. Bh6 {[%clk 0:02:05]} 1-0

[Event "December 12 Early 2023"]
[Site "https://www.chess.com"]
[Date "2023.12.12"]
[Round "8"]
[White "Khromkin, Andrey"]
[Black "Ambartsumova, Karina"]
[Result "0-1"]
[Board "101"]
[TimeControl "180+1"]
[WhiteFideId "4154126"]
[BlackFideId "4166299"]
[WhiteElo "2451"]
[BlackElo "2627"]
[WhiteTeam "RUS"]
[BlackTeam "RUS"]
[WhiteClock "0:00:00"]
[BlackClock "0:00:32"]

1. d4 {[%clk 0:03:00]}  Nf6 {[%clk 0:03:00]} 2. c4 {[%clk 0:03:01]}  e6 {[%clk 0:03:00]} 3. Nf3 {[%clk 0:03:02]}  d5 {[%clk 0:03:01]} 4. Nc3 {[%clk 0:03:01]}  Bb4 {[%clk 0:03:00]} 5. Qa4+ {[%clk 0:02:59]}  Nc6 {[%clk 0:03:00]} 6. e3 {[%clk 0:02:59]}  O-O {[%clk 0:03:00]} 7. Bd2 {[%clk 0:03:00]}  a6 {[%clk 0:02:59]} 8. Qc2 {[%clk 0:02:59]}  dxc4 {[%clk 0:02:56]} 9. Bxc4 {[%clk 0:02:59]}  Bd6 {[%clk 0:02:56]} 10. O-O {[%clk 0:02:47]}  e5 {[%clk 0:02:56]} 11. Ng5 {[%clk 0:02:41]}  exd4 {[%clk 0:02:37]} 12. Nd5 {[%clk 0:02:22]}  g6 {[%clk 0:02:29]} 13. exd4 {[%clk 0:02:13]}  Nxd4 {[%clk 0:02:11]} 14. Qc3 {[%clk 0:02:12]}  Be5 {[%clk 0:01:36]} 15. Qe3 {[%clk 0:01:47]}  Ng4 {[%clk 0:01:15]} 16. Qh3 {[%clk 0:00:58]}  Bxh2+ {[%clk 0:01:09]} 17. Kh1 {[%clk 0:00:48]}  Nxf2+ {[%clk 0:01:09]} 18. Rxf2 {[%clk 0:00:49]}  Bxh3 {[%clk 0:01:09]} 19. Kxh2 {[%clk 0:00:40]}  Bf5 {[%clk 0:00:53]} 20. g4 {[%clk 0:00:32]}  c6 {[%clk 0:00:51]} 21. Ne3 {[%clk 0:00:26]}  Be6 {[%clk 0:00:47]} 22. Nxe6 {[%clk 0:00:14]}  fxe6 {[%clk 0:00:44]} 23. Rxf8+ {[%clk 0:00:07]}  Qxf8 {[%clk 0:00:45]} 24. Rf1 {[%clk 0:00:05]}  Qd6+ {[%clk 0:00:38]} 25. Kg1 {[%clk 0:00:03]}  Qg3+ {[%clk 0:00:35]} 26. Ng2 {[%clk 0:00:02]}  Nf3+ {[%clk 0:00:34]} 27. Rxf3 {[%clk 0:00:03]}  Qxf3 {[%clk 0:00:35]} 28. Bc3 {[%clk 0:00:00]}  Qxg4 {[%clk 0:00:32]} 0-1

[Event "December 12 Early 2023"]
[Site "https://www.chess.com"]
[Date "2023.12.12"]
[Round "8"]
[White "Thorfinnsson, Bjorn"]
[Black "Mazurkiewicz, Michal"]
[Result "0-1"]
[Board "103"]
[TimeControl "180+1"]
[WhiteFideId "2300982"]
[BlackFideId "1124943"]
[WhiteElo "2604"]
[BlackElo "2430"]
[WhiteTeam "ISL"]
[BlackTeam "POL"]
[WhiteClock "0:01:54"]
[BlackClock "0:01:16"]

1. d4 {[%clk 0:02:59]}  Nf6 {[%clk 0:02:59]} 2. Nf3 {[%clk 0:02:59]}  g6 {[%clk 0:02:59]} 3. Bg5 {[%clk 0:03:00]}  Bg7 {[%clk 0:03:00]} 4. e3 {[%clk 0:03:00]}  O-O {[%clk 0:03:00]} 5. Bd3 {[%clk 0:03:01]}  d5 {[%clk 0:03:00]} 6. Nbd2 {[%clk 0:03:01]}  c6 {[%clk 0:02:59]} 7. c3 {[%clk 0:03:02]}  Re8 {[%clk 0:02:57]} 8. Qc2 {[%clk 0:03:02]}  Nbd7 {[%clk 0:02:56]} 9. h4 {[%clk 0:03:02]}  h5 {[%clk 0:02:49]} 10. O-O-O {[%clk 0:03:00]}  e5 {[%clk 0:02:41]} 11. dxe5 {[%clk 0:02:58]}  Nxe5 {[%clk 0:02:41]} 12. Nxe5 {[%clk 0:02:58]}  Rxe5 {[%clk 0:02:42]} 13. f4 {[%clk 0:02:56]}  Rxe3 {[%clk 0:02:25]} 14. f5 {[%clk 0:02:54]}  Rxd3 {[%clk 0:02:25]} 15. Qxd3 {[%clk 0:02:55]}  Bxf5 {[%clk 0:02:25]} 16. Qd4 {[%clk 0:02:55]}  Qd6 {[%clk 0:02:15]} 17. Nc4 {[%clk 0:02:46]}  Qe6 {[%clk 0:02:06]} 18. Nd2 {[%clk 0:02:28]}  Ne4 {[%clk 0:01:52]} 19. Qb4 {[%clk 0:02:27]}  Nf2 {[%clk 0:01:45]} 20. Nf3 {[%clk 0:02:24]}  Nxh1 {[%clk 0:01:31]} 21. Rxh1 {[%clk 0:02:21]}  Qe2 {[%clk 0:01:29]} 22. Ne1 {[%clk 0:02:10]}  Re8 {[%clk 0:01:23]} 23. Qxb7 {[%clk 0:02:07]}  Qf2 {[%clk 0:01:16]} 24. Bd2 {[%clk 0:01:54]}  Bh6 {[%clk 0:01:16]} 0-1

[Event "December 12 Early 2023"]
[Site "https://www.chess.com"]
[Date "2023.12.12"]
[Round "8"]
[White "Bogaudinov, Rushan"]
[Black "Jaiveer Mahendru"]
[Result "1-0"]
[Board "104"]
[TimeControl "180+1"]
[WhiteFideId "4129288"]
[BlackFideId "25611151"]
[WhiteElo "2428"]
[BlackElo "2572"]
[WhiteTeam "RUS"]
[BlackTeam "IND"]
[WhiteClock "0:01:35"]
[BlackClock "0:01:44"]

1. e4 {[%clk 0:03:00]}  c5 {[%clk 0:02:57]} 2. Nf3 {[%clk 0:02:59]}  d6 {[%clk 0:02:57]} 3. d4 {[%clk 0:02:59]}  cxd4 {[%clk 0:02:58]} 4. Nxd4 {[%clk 0:03:00]}  Nf6 {[%clk 0:02:58]} 5. Nc3 {[%clk 0:03:00]}  a6 {[%clk 0:02:58]} 6. h3 {[%clk 0:02:59]}  e5 {[%clk 0:02:58]} 7. Nde2 {[%clk 0:02:58]}  h5 {[%clk 0:02:58]} 8. g3 {[%clk 0:02:58]}  Be6 {[%clk 0:02:58]} 9. Bg2 {[%clk 0:02:59]}  Be7 {[%clk 0:02:58]} 10. O-O {[%clk 0:02:53]}  Qc8 {[%clk 0:02:52]} 11. h4 {[%clk 0:02:42]}  Bh3 {[%clk 0:02:49]} 12. Bg5 {[%clk 0:02:28]}  Bxg2 {[%clk 0:02:44]} 13. Kxg2 {[%clk 0:02:29]}  Ng4 {[%clk 0:02:45]} 14. Bxe7 {[%clk 0:02:27]}  Kxe7 {[%clk 0:02:46]} 15. Nd5+ {[%clk 0:02:26]}  Ke8 {[%clk 0:02:38]} 16. Nb6 {[%clk 0:02:26]}  Qc6 {[%clk 0:02:38]} 17. Nxa8 {[%clk 0:02:20]}  Qxe4+ {[%clk 0:02:23]} 18. Kg1 {[%clk 0:02:17]}  g5 {[%clk 0:02:03]} 19. Qxd6 {[%clk 0:02:04]}  Nd7 {[%clk 0:02:00]} 20. Nc7+ {[%clk 0:02:03]}  Kd8 {[%clk 0:01:59]} 21. Rad1 {[%clk 0:01:59]}  Kc8 {[%clk 0:01:54]} 22. Qxd7+ {[%clk 0:01:56]}  Kb8 {[%clk 0:01:54]} 23. Nc3 {[%clk 0:01:50]}  Qf3 {[%clk 0:01:44]} 24. Qd5 {[%clk 0:01:35]} 1-0

[Event "December 12 Early 2023"]
[Site "https://www.chess.com"]
[Date "2023.12.12"]
[Round "8"]
[White "Rios Escobar, Adan"]
[Black "Iskusnyh, Sergei"]
[Result "0-1"]
[Board "105"]
[TimeControl "180+1"]
[WhiteFideId "3403645"]
[BlackFideId "4120027"]
[WhiteElo "2425"]
[BlackElo "2570"]
[WhiteTeam "CHI"]
[BlackTeam "RUS"]
[WhiteClock "0:00:06"]
[BlackClock "0:00:09"]

1. Nf3 {[%clk 0:03:00]}  d5 {[%clk 0:02:59]} 2. e3 {[%clk 0:03:00]}  Nf6 {[%clk 0:02:56]} 3. c4 {[%clk 0:03:01]}  c6 {[%clk 0:02:56]} 4. Nc3 {[%clk 0:03:00]}  a6 {[%clk 0:02:56]} 5. a4 {[%clk 0:02:46]}  Bf5 {[%clk 0:02:55]} 6. cxd5 {[%clk 0:02:45]}  cxd5 {[%clk 0:02:55]} 7. Qb3 {[%clk 0:02:45]}  Nc6 {[%clk 0:02:17]} 8. Qxb7 {[%clk 0:02:26]}  Na5 {[%clk 0:02:16]} 9. Qb4 {[%clk 0:02:21]}  e6 {[%clk 0:02:15]} 10. Qh4 {[%clk 0:02:18]}  Nb3 {[%clk 0:02:15]} 11. a5 {[%clk 0:02:03]}  Nxa1 {[%clk 0:02:02]} 12. Qa4+ {[%clk 0:02:02]}  Nd7 {[%clk 0:01:59]} 13. Qxa1 {[%clk 0:02:03]}  Bb4 {[%clk 0:01:58]} 14. Nd4 {[%clk 0:02:03]}  Qxa5 {[%clk 0:01:50]} 15. Qxa5 {[%clk 0:02:02]}  Bxa5 {[%clk 0:01:51]} 16. Nxf5 {[%clk 0:02:03]}  exf5 {[%clk 0:01:51]} 17. Nxd5 {[%clk 0:02:03]}  Rc8 {[%clk 0:01:46]} 18. Kd1 {[%clk 0:01:55]}  Nc5 {[%clk 0:01:41]} 19. b4 {[%clk 0:01:44]}  Ne4 {[%clk 0:01:30]} 20. Bxa6 {[%clk 0:01:33]}  Rd8 {[%clk 0:01:10]} 21. Bb5+ {[%clk 0:01:21]}  Kf8 {[%clk 0:01:08]} 22. Bc6 {[%clk 0:00:58]}  Bxb4 {[%clk 0:00:52]} 23. Nxb4 {[%clk 0:00:33]}  Nxf2+ {[%clk 0:00:51]} 24. Ke2 {[%clk 0:00:34]}  Nxh1 {[%clk 0:00:52]} 25. Ba3 {[%clk 0:00:27]}  Kg8 {[%clk 0:00:51]} 26. Nd5 {[%clk 0:00:20]}  h5 {[%clk 0:00:51]} 27. g3 {[%clk 0:00:20]}  Rh6 {[%clk 0:00:50]} 28. Ne7+ {[%clk 0:00:19]}  Kh8 {[%clk 0:00:47]} 29. Bxh1 {[%clk 0:00:20]}  Ra6 {[%clk 0:00:25]} 30. Bc5 {[%clk 0:00:19]}  g6 {[%clk 0:00:19]} 31. Nd5 {[%clk 0:00:15]}  Rc8 {[%clk 0:00:14]} 32. Bd4+ {[%clk 0:00:15]}  Kh7 {[%clk 0:00:14]} 33. Nf6+ {[%clk 0:00:14]}  Kh6 {[%clk 0:00:14]} 34. Bb7 {[%clk 0:00:13]}  Rcc6 {[%clk 0:00:12]} 35. Bxa6 {[%clk 0:00:13]}  Rxa6 {[%clk 0:00:11]} 36. Nd5 {[%clk 0:00:13]}  Ra2 {[%clk 0:00:11]} 37. Nf4 {[%clk 0:00:12]}  Kg5 {[%clk 0:00:10]} 38. h4+ {[%clk 0:00:12]}  Kg4 {[%clk 0:00:10]} 39. Be5 {[%clk 0:00:10]}  Kxg3 {[%clk 0:00:09]} 40. Nxg6+ {[%clk 0:00:08]}  Kg4 {[%clk 0:00:08]} 41. Nh8 {[%clk 0:00:06]}  Ra7 {[%clk 0:00:07]} 42. Bf6 {[%clk 0:00:06]}  Rd7 {[%clk 0:00:05]} 43. d4 {[%clk 0:00:06]}  f4 {[%clk 0:00:05]} 44. exf4 {[%clk 0:00:04]}  Kxf4 {[%clk 0:00:05]} 45. Kd3 {[%clk 0:00:04]}  Kf5 {[%clk 0:00:05]} 46. Bg5 {[%clk 0:00:03]}  f6 {[%clk 0:00:05]} 47. Bh6 {[%clk 0:00:02]}  Rh7 {[%clk 0:00:05]} 48. Nf7 {[%clk 0:00:02]}  Rxf7 {[%clk 0:00:05]} 49. Kc4 {[%clk 0:00:02]}  Rc7+ {[%clk 0:00:04]} 50. Kd5 {[%clk 0:00:02]}  Kg4 {[%clk 0:00:03]} 51. Bf8 {[%clk 0:00:01]}  Kxh4 {[%clk 0:00:03]} 52. Ke6 {[%clk 0:00:01]}  Rc8 {[%clk 0:00:02]} 53. Be7 {[%clk 0:00:01]}  Kg4 {[%clk 0:00:02]} 54. Bxf6 {[%clk 0:00:02]}  h4 {[%clk 0:00:02]} 55. d5 {[%clk 0:00:02]}  h3 {[%clk 0:00:02]} 56. Be5 {[%clk 0:00:03]}  h2 {[%clk 0:00:02]} 57. d6 {[%clk 0:00:03]}  Re8+ {[%clk 0:00:02]} 58. Kf6 {[%clk 0:00:02]}  Rxe5 {[%clk 0:00:02]} 59. Kxe5 {[%clk 0:00:02]}  h1=Q {[%clk 0:00:02]} 60. Ke6 {[%clk 0:00:02]}  Qh6+ {[%clk 0:00:02]} 61. Ke7 {[%clk 0:00:03]}  Qg7+ {[%clk 0:00:03]} 62. Ke8 {[%clk 0:00:03]}  Qg8+ {[%clk 0:00:03]} 63. Ke7 {[%clk 0:00:03]}  Qg7+ {[%clk 0:00:03]} 64. Ke8 {[%clk 0:00:04]}  Qe5+ {[%clk 0:00:04]} 65. Kd7 {[%clk 0:00:03]}  Kf5 {[%clk 0:00:04]} 66. Kc6 {[%clk 0:00:03]}  Ke6 {[%clk 0:00:05]} 67. Kc7 {[%clk 0:00:04]}  Qd5 {[%clk 0:00:05]} 68. d7 {[%clk 0:00:04]}  Qxd7+ {[%clk 0:00:06]} 69. Kb6 {[%clk 0:00:04]}  Ke5 {[%clk 0:00:06]} 70. Kc5 {[%clk 0:00:05]}  Ke4 {[%clk 0:00:06]} 71. Kc4 {[%clk 0:00:06]}  Qc7+ {[%clk 0:00:07]} 72. Kb3 {[%clk 0:00:06]}  Kd3 {[%clk 0:00:07]} 73. Kb4 {[%clk 0:00:06]}  Qb6+ {[%clk 0:00:08]} 74. Ka3 {[%clk 0:00:05]}  Kc3 {[%clk 0:00:08]} 75. Ka2 {[%clk 0:00:06]}  Qb2# {[%clk 0:00:09]} 0-1